bitfinex/quotes_ETHUSD_20220215
["timestamp","ask_amount","ask_price","bid_price","bid_amount"]
[1644918066595,0.00278643,3091.8,3091.1,0.80875]
[1644918066792,0.01361759,3091.5,3091.1,0.80875]
[1644918066997,1.17553316,3091.4,3091.1,0.80875]
[1644918067193,1.17831959,3091.4,3091.1,0.80875]
[1644918067995,1.17553316,3091.3,3091.2,0.3]
[1644918068196,0.01138016,3091.9,3091.3,0.80865]
[1644918068398,0.01138016,3091.9,3091.2,0.6]
[1644918068598,0.01138016,3091.9,3091.2,0.3]
[1644918068845,0.01138016,3091.9,3091.3,0.3]
[1644918069048,0.01138016,3091.9,3091.5,1.16149902]
[1644918069244,0.00338065,3091.7,3091.5,2.77858122]
[1644918069443,0.00338065,3091.7,3091.6,0.3]
[1644918069648,0.78961669,3092.5,3091.6,4.5]
[1644918069844,0.00280292,3092.4,3091.6,4.5]
[1644918070049,0.00280292,3092.4,3091.7,4.30852]
[1644918070246,0.00280292,3092.7,3092.1,1.04841834]
[1644918070445,0.00280292,3092.8,3092.2,0.80843]
[1644918070647,0.00280292,3092.8,3092.3,18.97]
[1644918070847,0.00280292,3092.8,3092.4,3.5]
[1644918071051,0.00280292,3092.8,3092.4,2.10827]
[1644918071246,0.00280292,3092.8,3092.4,2.9164544]
[1644918071447,0.00280292,3092.8,3092.4,7.2245544]
[1644918071647,0.00280292,3092.8,3092.5,1.61622]
[1644918071847,0.00280292,3092.8,3092.7,18.97]
[1644918072248,0.00280292,3092.8,3092.7,1.0]
[1644918072691,0.00280292,3092.8,3092.6,4.96013095]
[1644918072888,0.00280292,3092.8,3092.7,3.39447236]
[1644918073894,0.09891523,3093.0,3092.8,0.80811]
[1644918074091,0.09891523,3093.0,3092.9,3.31464996]
[1644918074292,0.09891523,3093.0,3092.9,1.3]
[1644918075692,0.09891523,3093.0,3092.9,1.295]
[1644918076541,0.0020204,3093.5,3093.2,0.80809]
[1644918076741,0.0020204,3093.5,3093.2,1.91614]
[1644918076940,0.0020204,3093.5,3093.2,1.10805]
[1644918077141,0.0020204,3093.5,3093.3,0.3]
[1644918077545,0.0020204,3093.5,3093.2,0.3]
[1644918077843,0.00611044,3093.5,3093.3,0.3]
[1644918078644,0.0020204,3093.5,3093.3,0.3]
[1644918079247,0.0020204,3093.5,3093.3,1.1080733]
[1644918079543,0.0020204,3093.5,3093.3,0.3]
[1644918079745,0.0020204,3093.5,3093.3,1.24137478]
[1644918080205,0.00409004,3093.6,3093.5,9.8937496]
[1644918080399,0.00813084,3093.6,3093.5,9.0856996]
[1644918080599,0.00813084,3093.6,3093.5,8.7856996]
[1644918080797,0.00813084,3093.6,3093.5,9.0856996]
[1644918080999,0.0040408,3093.6,3093.5,9.0856996]
[1644918081605,0.01353508,3093.7,3093.5,9.0856996]
[1644918081800,0.02697168,3093.7,3093.6,6.55]
[1644918083102,0.02697168,3093.7,3093.5,9.3856996]
[1644918083301,0.00212128,3094.5,3093.5,9.3856996]
[1644918083302,0.0161632,3094.6,3093.6,6.95]
[1644918083504,0.0161632,3094.6,3093.6,12.70760424]
[1644918083505,0.02040576,3094.6,3093.6,12.70760424]
[1644918083704,0.02040576,3094.6,3093.7,6.033]
[1644918083943,0.02040576,3094.6,3093.7,6.333]
[1644918084347,0.02040576,3094.6,3094.1,1.66489179]
[1644918084546,0.02040576,3094.6,3094.1,1.9156095]
[1644918084745,0.02040576,3094.6,3094.1,1.1078095]
[1644918085153,0.97643605,3095.2,3094.3,25.92]
[1644918085154,0.00848512,3095.0,3094.3,25.92]
[1644918085451,0.00848512,3095.0,3094.7,1.61508]
[1644918085645,0.04035807,3094.9,3094.7,1.61508]
[1644918085846,0.04035807,3094.9,3094.7,1.10754]
[1644918086347,0.07750493,3095.5,3094.9,6.95]
[1644918086554,0.00408256,3095.6,3095.1,6.95]
[1644918086746,0.00408256,3095.6,3095.4,1.0]
[1644918086747,0.12936,3095.5,3095.4,1.0]
[1644918086946,0.00816512,3095.8,3095.6,6.95]
[1644918087147,0.00816512,3095.8,3095.6,8.87659959]
[1644918087610,0.00816512,3095.8,3095.7,0.80731]
[1644918088211,0.4838632,3096.0,3095.9,20.58447]
[1644918088212,0.01633024,3096.0,3095.9,20.58447]
[1644918088511,2.41881677,3097.6,3095.9,20.58447]
[1644918088512,0.01538964,3096.9,3096.0,25.92]
[1644918088715,0.01538964,3096.9,3096.2,19.77707]
[1644918088913,0.00277497,3096.9,3096.6,18.97]
[1644918089111,9.70234156,3097.0,3096.7,1.0]
[1644918089511,9.70234156,3097.0,3096.1,0.467]
[1644918089710,9.70234156,3097.0,3095.9,0.80733]
[1644918090311,9.70234156,3097.0,3095.9,23.27733]
[1644918090312,1.14205427,3096.8,3095.9,23.27733]
[1644918090515,9.70234156,3097.0,3095.9,19.77733]
[1644918090711,9.70234156,3097.0,3095.9,19.77233]
[1644918090913,9.70234156,3097.0,3095.9,0.80233]
[1644918091114,9.70234156,3097.0,3095.7,1.61453]
[1644918091115,0.00387587,3096.5,3095.7,1.0]
[1644918091351,0.00387587,3096.5,3095.8,18.97]
[1644918091552,0.00387587,3096.5,3096.0,18.97]
[1644918091751,0.00387587,3096.5,3096.0,0.3]
[1644918091955,9.7178427,3097.0,3095.8,1.0]
[1644918091956,1.1665923,3096.2,3095.8,1.0]
[1644918092152,1.1665923,3096.2,3095.6,0.004]
[1644918092753,4.30765,3096.1,3095.6,0.004]
[1644918092952,4.3077283,3096.0,3095.6,0.004]
[1644918093157,6.0747283,3096.0,3095.6,0.004]
[1644918093354,2.57593152,3096.0,3095.6,0.004]
[1644918093553,0.80794,3095.5,3094.3,1.1347]
[1644918093753,0.80794,3095.5,3093.5,13.2795796]
[1644918093754,0.80798,3094.9,3093.5,13.2795796]
[1644918093952,0.80795,3095.0,3093.5,10.4013796]
[1644918094154,0.80795,3095.0,3093.5,11.4013796]
[1644918094353,1.17924452,3094.4,3093.7,0.8078856]
[1644918094555,4.24028685,3095.1,3093.5,12.0171696]
[1644918094753,4.24028685,3095.1,3093.8,0.80786]
[1644918095593,0.005,3094.4,3093.8,0.80786]
[1644918095796,0.005,3094.4,3094.3,0.00969074]
[1644918096793,0.005,3094.4,3093.8,8.78772]
[1644918096994,0.005,3094.4,3094.2,0.00969101]
[1644918097896,0.81483075,3094.1,3093.8,8.78772]
[1644918098195,0.81483075,3094.1,3093.8,5.28862901]
[1644918098404,0.81483075,3094.1,3093.8,2.82042901]
[1644918098405,4.6,3093.9,3093.8,2.82042901]
[1644918098595,4.6,3093.9,3093.5,8.7856996]
[1644918098596,5.067,3093.9,3093.5,8.7856996]
[1644918098847,2.12938762,3093.8,3093.5,8.4706996]
[1644918099053,2.12938762,3093.8,3092.8,8.78772]
[1644918099054,7.467,3093.7,3092.8,8.78772]
[1644918099247,4.1,3093.6,3092.8,8.78772]
[1644918099449,0.467,3093.5,3092.8,8.41394033]
[1644918099648,0.78787903,3093.5,3092.8,8.41394033]
[1644918100252,9.27606951,3093.4,3092.8,8.41394033]
[1644918100448,1.6689426,3093.2,3092.8,8.41394033]
[1644918100648,4.56105715,3093.1,3092.8,8.41394033]
[1644918100852,1.0,3093.0,3092.8,8.40894033]
[1644918101053,4.11269077,3092.9,3092.8,8.40894033]
[1644918102449,1.0,3093.0,3092.8,8.40894033]
[1644918102904,0.467,3092.9,3092.8,8.40894033]
[1644918103904,0.5,3093.4,3092.8,8.40894033]
[1644918104502,0.467,3094.0,3092.8,8.40894033]
[1644918104703,1.05278558,3093.8,3093.0,0.89165533]
[1644918104904,0.00276109,3093.7,3093.0,0.89165533]
[1644918105107,0.00276109,3093.7,3092.8,8.40894033]
[1644918105505,0.00276109,3093.7,3093.2,0.0096875]
[1644918105506,0.005,3093.4,3093.2,0.0096875]
[1644918106644,0.005,3093.4,3093.1,0.00968764]
[1644918106842,0.00776109,3093.4,3093.1,0.00968764]
[1644918107043,0.25776109,3093.4,3093.1,0.00968764]
[1644918107645,1.03296165,3093.2,3092.8,8.40894033]
[1644918107843,0.00276109,3093.1,3092.8,8.40894033]
[1644918108944,0.00276109,3093.3,3092.8,8.40894033]
[1644918109145,0.00276109,3093.3,3092.8,8.41830194]
[1644918109947,0.00276109,3093.3,3092.8,8.40894033]
[1644918110193,0.00276109,3093.3,3092.9,0.00936134]
[1644918110796,0.02403011,3093.3,3092.9,0.00936134]
[1644918111194,0.02403011,3093.3,3092.8,8.40894033]
[1644918111398,0.02403011,3093.3,3092.9,0.00898755]
[1644918111594,0.02403011,3093.3,3092.9,3.75979509]
[1644918111795,0.02403011,3093.3,3092.9,4.22679509]
[1644918111994,0.02126902,3093.3,3092.9,4.22679509]
[1644918112194,0.02403011,3093.3,3092.9,4.22679509]
[1644918112394,0.02126902,3093.3,3092.9,0.467]
[1644918112594,0.02403011,3093.3,3092.9,0.467]
[1644918112795,0.02403011,3093.3,3092.9,0.47598755]
[1644918113194,0.02403011,3093.3,3092.9,0.00898755]
[1644918113596,0.02403011,3093.3,3092.8,9.3725755]
[1644918113840,0.02403011,3093.3,3092.9,0.00898755]
[1644918114843,0.02403011,3093.3,3092.8,9.3725755]
[1644918115141,0.02403011,3093.3,3092.9,0.20839595]
[1644918115340,0.02403011,3093.3,3092.9,0.00784262]
[1644918115541,0.02403011,3093.3,3093.0,0.20047569]
[1644918115744,0.02403011,3093.3,3092.9,0.00784262]
[1644918115942,0.02126902,3093.3,3092.9,0.00784262]
[1644918116146,0.02126902,3093.3,3092.8,8.40894033]
[1644918116345,0.02126902,3093.3,3093.0,0.0078425]
[1644918116346,0.83250011,3093.3,3093.0,0.0078425]
[1644918116540,0.02403011,3093.3,3093.0,0.0078425]
[1644918117140,0.83242011,3093.3,3093.0,0.0078425]
[1644918117342,0.83242011,3093.3,3092.8,8.40894033]
[1644918117593,0.83242011,3093.3,3093.0,0.0078425]
[1644918117992,1.10847,3093.2,3093.0,0.0078425]
[1644918118195,3.73616734,3093.1,3093.0,0.0078425]
[1644918118395,3.73616734,3093.1,3092.8,8.39555328]
[1644918118396,10.52404637,3093.1,3092.8,8.39555328]
[1644918118592,10.82404637,3093.1,3092.8,8.39555328]
[1644918118892,2.15189321,3093.0,3092.8,3.55236081]
[1644918119094,4.26825899,3092.9,3092.8,3.55236081]
[1644918119295,5.56825899,3092.9,3092.8,3.55236081]
[1644918119691,10.56825899,3092.9,3092.8,3.55236081]
[1644918119892,10.56825899,3092.9,3091.2,0.61107489]
[1644918120194,10.56825899,3092.9,3090.9,4.11443604]
[1644918120195,2.6763807,3092.2,3091.3,0.19712567]
[1644918120395,3.82087903,3092.1,3091.4,0.19712567]
[1644918120597,3.82087903,3092.1,3090.8,0.61107489]
[1644918120598,5.0,3092.0,3090.9,0.19712567]
[1644918120793,5.0,3092.0,3091.0,0.19728363]
[1644918120794,0.84459934,3091.6,3091.0,0.19728363]
[1644918120994,1.09459934,3091.6,3090.7,0.19728363]
[1644918121342,0.8089955,3091.2,3090.7,0.19728363]
[1644918121545,0.809,3091.1,3090.7,0.19728363]
[1644918122342,0.809,3091.1,3090.7,0.20579866]
[1644918122542,0.809,3091.1,3090.8,0.19728363]
[1644918123342,1.61799,3091.1,3090.8,0.19728363]
[1644918123544,0.809,3091.1,3090.9,0.19728363]
[1644918123745,1.109,3091.1,3090.9,0.19728363]
[1644918124545,1.109,3091.1,3090.7,1.03310268]
[1644918124745,1.109,3091.1,3090.8,0.19995385]
[1644918124947,0.3,3091.1,3090.9,0.19026599]
[1644918125198,0.80876,3091.4,3090.8,0.00968786]
[1644918125395,0.80876,3091.4,3090.9,0.19015779]
[1644918125797,0.80876,3091.4,3091.0,0.19015779]
[1644918125996,0.80876,3091.4,3090.9,0.00968758]
[1644918126196,0.80876,3091.4,3091.0,0.19017642]
[1644918126598,0.80876,3091.4,3090.9,0.00968758]
[1644918126599,1.80876,3091.4,3090.9,0.00968758]
[1644918126795,1.80876,3091.4,3090.0,3.5]
[1644918126997,1.80876,3091.4,3090.1,0.19025263]
[1644918127200,0.80893,3091.3,3091.0,0.00968731]
[1644918127396,1.91785,3091.3,3091.0,0.00968731]
[1644918127897,0.80892,3091.3,3091.0,0.00968731]
[1644918128098,0.25,3091.6,3090.1,1.0]
[1644918128398,0.25,3091.6,3091.2,1.07161556]
[1644918129438,0.25,3091.6,3091.2,1.08130232]
[1644918130440,0.25,3091.6,3090.4,1.0]
[1644918130743,0.02070471,3091.3,3091.2,0.00968676]
[1644918131544,0.02070471,3091.3,3090.8,0.03875285]
[1644918131743,0.02070471,3091.3,3089.8,3.43794989]
[1644918131943,0.25,3091.0,3090.6,0.0387545]
[1644918132592,0.80899,3090.9,3090.6,0.0387545]
[1644918132795,0.80899,3090.9,3090.3,0.97912182]
[1644918132994,0.80899,3090.9,3090.4,0.18992653]
[1644918133196,0.80899,3090.9,3090.6,0.00968841]
[1644918133393,1.86797,3091.0,3090.6,0.00968841]
[1644918133394,0.25,3091.0,3090.6,0.00968841]
[1644918133994,0.25,3091.0,3090.3,0.97912182]
[1644918134194,0.25,3091.0,3090.4,0.18984734]
[1644918134395,0.25,3091.0,3090.6,0.00968841]
[1644918134594,0.25,3091.0,3090.7,0.18984734]
[1644918134997,1.05889,3091.0,3090.6,0.00968841]
[1644918135194,1.05889,3091.0,3090.3,0.97912182]
[1644918135393,1.05889,3091.0,3090.4,0.19029178]
[1644918135593,1.05889,3091.0,3090.7,0.00968827]
[1644918135793,0.02059176,3090.9,3090.7,0.00968827]
[1644918136195,1.63856176,3090.9,3090.7,0.00968827]
[1644918136441,1.63856176,3090.9,3090.6,250.0]
[1644918136642,5.07775094,3090.9,3090.7,0.19069023]
[1644918136944,1.63856176,3090.9,3090.6,250.00968841]
[1644918137344,1.61807,3090.8,3090.6,250.00968841]
[1644918137546,0.80896,3090.8,3090.6,250.0]
[1644918137943,0.80896,3090.8,3090.6,250.00896589]
[1644918138143,0.80896,3090.8,3090.7,0.19058802]
[1644918138344,0.04461586,3090.8,3090.7,0.19058802]
[1644918139444,0.82948176,3090.9,3090.6,250.00896589]
[1644918139644,0.82948176,3090.9,3090.7,0.17674128]
[1644918139845,0.02059176,3090.9,3090.7,3.37004565]
[1644918140099,0.02059176,3090.9,3090.7,3.35512552]
[1644918140295,0.90519997,3091.9,3090.7,3.35512552]
[1644918140296,0.25,3092.1,3090.9,7.0]
[1644918140495,1.61734,3091.8,3091.0,3.67669441]
[1644918140694,1.61734,3091.8,3091.1,0.17669441]
[1644918141295,1.61734,3091.8,3091.5,1.18713134]
[1644918141499,0.80866,3091.8,3091.3,0.00896412]
[1644918141694,0.80866,3091.8,3091.4,0.17670981]
[1644918141894,0.88918683,3092.5,3091.4,0.17670981]
[1644918142295,5.91069,3093.0,3091.4,0.17670981]
[1644918142296,1.0,3092.6,3091.4,0.17670981]
[1644918142598,1.61725,3092.5,3091.4,0.98530701]
[1644918142794,0.80863,3092.2,3091.8,0.00901163]
[1644918142997,5.91069,3093.0,3091.8,0.00901163]
[1644918142998,0.25,3093.0,3091.8,0.00901163]
[1644918143203,0.16839219,3093.3,3091.9,0.17656675]
[1644918143204,0.0039311,3093.3,3091.9,0.17656675]
[1644918143397,1.06954267,3093.1,3092.1,1.1326746]
[1644918143841,1.06954267,3093.1,3092.1,1.4326746]
[1644918144047,1.06954267,3093.1,3092.4,0.00900998]
[1644918144243,0.80835,3093.1,3092.4,0.00900998]
[1644918144442,0.00393192,3093.3,3092.4,0.00900998]
[1644918144643,0.00393192,3093.3,3092.5,0.17307538]
[1644918145045,0.005,3093.4,3092.3,0.3]
[1644918145247,1.13364175,3093.1,3092.7,0.00900935]
[1644918146045,1.13364175,3093.1,3092.2,3.58164507]
[1644918146343,0.80841,3093.1,3092.7,0.00900588]
[1644918146544,0.0039323,3093.3,3092.7,0.00900588]
[1644918147345,0.005,3093.4,3092.9,1.04401945]
[1644918147603,0.00393243,3093.3,3093.1,0.80812]
[1644918148003,0.00393243,3093.3,3093.0,3.30186658]
[1644918148209,0.00393243,3093.3,3093.0,4.10997748]
[1644918148601,0.005,3093.4,3093.0,4.10997748]
[1644918148801,0.00393257,3093.3,3093.1,0.8081]
[1644918148999,0.00393257,3093.3,3093.0,0.8081109]
[1644918149200,0.00393257,3093.3,3092.9,1.34401945]
[1644918149599,0.005,3093.4,3092.9,1.34401945]
[1644918149801,0.005,3093.4,3092.5,0.80825]
[1644918150007,0.00393256,3093.3,3092.7,0.00900616]
[1644918150203,0.80836,3093.2,3092.7,0.00900616]
[1644918150804,0.80845,3093.1,3092.7,0.00900616]
[1644918151001,1.18527701,3093.0,3092.1,0.8447986]
[1644918151201,0.8085,3092.9,3092.7,0.00900611]
[1644918151646,0.80851,3093.0,3092.7,0.00900611]
[1644918152047,0.80851,3093.0,3092.1,0.8447986]
[1644918152249,0.80851,3093.0,3092.7,0.00900621]
[1644918152250,1.18566773,3092.9,3092.7,0.00900621]
[1644918152448,0.80851,3092.8,3092.7,0.00900621]
[1644918153349,0.80851,3092.8,3092.1,0.8447986]
[1644918153546,0.80851,3092.8,3092.6,0.00900645]
[1644918153547,0.80855,3092.7,3092.6,0.00900645]
[1644918154348,0.80847,3093.0,3092.9,247.57436]
[1644918154549,1.99473537,3093.0,3092.9,247.57436]
[1644918154849,1.18626537,3093.0,3092.9,247.57436]
[1644918155605,0.005,3093.4,3092.9,247.57436]
[1644918155800,1.18619457,3093.3,3092.9,247.57436]
[1644918155998,0.80836,3093.2,3092.9,247.57436]
[1644918156198,1.18619457,3093.1,3092.9,247.57436]
[1644918158500,1.18619457,3093.1,3092.9,246.10757576]
[1644918158945,1.99464457,3093.1,3092.9,246.10757576]
[1644918159146,1.18619457,3093.0,3092.9,246.10757576]
[1644918160750,1.48619457,3093.0,3092.9,246.10757576]
[1644918161850,1.18619457,3093.0,3092.9,246.10757576]
[1644918165611,0.005,3093.4,3093.0,7.0]
[1644918165814,0.005,3093.4,3093.1,3.96861979]
[1644918166012,7.43664075,3094.1,3093.1,3.96861979]
[1644918166210,0.8082,3093.6,3093.1,3.96861979]
[1644918166445,1.16102449,3093.5,3093.0,3.63005111]
[1644918166646,1.16102449,3093.5,3093.3,1.15462668]
[1644918166848,1.16102449,3093.4,3093.3,1.15462668]
[1644918167046,1.96924449,3093.8,3093.3,1.15462668]
[1644918167248,1.16102449,3093.7,3093.4,3.26903292]
[1644918167447,1.16102449,3093.7,3093.4,3.2686077]
[1644918167647,1.16102449,3093.7,3093.4,3.26820314]
[1644918167846,1.16102449,3093.7,3093.3,1.15462668]
[1644918168047,1.16102449,3093.7,3093.4,0.00900444]
[1644918168248,1.16102449,3093.7,3093.4,3.44972849]
[1644918168450,1.16102449,3093.7,3093.4,3.28239153]
[1644918168650,1.16102449,3093.7,3093.4,0.30900444]
[1644918168848,0.129443,3093.8,3093.4,0.30900444]
[1644918169047,0.129443,3093.8,3093.3,1.45462668]
[1644918169249,0.00664075,3094.1,3093.3,1.45462668]
[1644918169250,1.16057552,3093.7,3093.4,0.00900444]
[1644918169448,0.00388311,3094.0,3093.4,0.00900444]
[1644918169648,1.9687185,3093.9,3093.4,0.00900444]
[1644918169849,1.1605685,3093.8,3093.4,0.00900444]
[1644918170098,1.1605685,3093.8,3093.3,1.45462668]
[1644918170499,1.1605685,3093.8,3093.5,0.00900419]
[1644918170899,0.00388323,3094.0,3093.5,0.00900419]
[1644918171101,1.16015778,3093.9,3093.5,0.00900419]
[1644918171300,1.16015778,3093.9,3093.4,3.76759259]
[1644918171498,0.00388336,3094.0,3093.6,0.00900354]
[1644918171697,1.16015265,3093.9,3093.6,0.00900354]
[1644918172499,1.16015265,3093.9,3093.4,3.76759259]
[1644918172701,0.00664075,3094.1,3093.4,3.76759259]
[1644918172903,1.16368871,3094.0,3093.6,0.00900354]
[1644918173100,1.15980535,3093.9,3093.6,0.00900354]
[1644918173500,0.00388336,3094.0,3093.6,0.00900354]
[1644918173702,0.00664075,3094.1,3093.4,0.3]
[1644918173958,1.16367448,3094.0,3093.6,0.00900354]
[1644918174163,0.00388336,3094.0,3093.6,0.30900354]
[1644918174354,1.15932102,3093.9,3093.6,0.00900354]
[1644918174554,1.15932102,3093.9,3093.6,0.30900354]
[1644918174758,0.00388336,3094.0,3093.6,0.30900354]
[1644918174955,9.90444532,3095.7,3095.5,200.90103201]
[1644918175155,3.88315204,3095.6,3095.5,195.76896576]
[1644918175354,4.04557512,3095.6,3095.5,195.76896576]
[1644918175554,5.6860173,3095.6,3095.5,195.76896576]
[1644918175756,4.53857312,3095.6,3095.5,195.76896576]
[1644918175956,4.04557512,3095.6,3095.5,195.76896576]
[1644918176558,4.51257512,3095.6,3095.5,195.76896576]
[1644918176958,4.21257512,3095.6,3095.5,195.76896576]
[1644918177456,4.05015204,3095.6,3095.5,195.76896576]
[1644918177697,0.467,3095.6,3094.3,0.081561]
[1644918177903,0.00273355,3095.5,3094.3,0.081561]
[1644918178098,0.80794,3095.2,3094.3,0.081561]
[1644918178301,1.61586,3095.2,3094.3,0.081561]
[1644918178504,0.80792,3095.2,3094.3,0.8894515]
[1644918178702,1.88314439,3096.3,3095.1,1.10649342]
[1644918178703,1.0,3096.2,3095.1,1.10649342]
[1644918178903,0.00273355,3096.1,3094.4,4.00188565]
[1644918179099,0.00273355,3096.1,3095.3,1.02263769]
[1644918179298,0.81042355,3096.1,3095.3,1.02263769]
[1644918179902,0.80769,3096.1,3095.3,1.02263769]
[1644918180101,0.80769,3096.1,3095.3,1.01763769]
[1644918180601,0.8078,3096.0,3095.3,1.01763769]
[1644918180802,0.80776,3095.8,3095.3,1.01763769]
[1644918181007,0.00273355,3095.7,3095.3,1.01763769]
[1644918181452,1.61559,3095.9,3094.7,7.0771]
[1644918181654,1.61559,3095.9,3094.7,4.0403]
[1644918181655,0.00273355,3095.8,3094.7,4.0403]
[1644918181852,0.005,3095.3,3094.7,4.0403]
[1644918182449,0.005,3095.3,3095.1,0.00948761]
[1644918183450,0.005,3095.3,3094.8,1.32580401]
[1644918183653,0.01,3095.3,3095.0,0.00967631]
[1644918184456,0.01,3095.3,3094.8,1.32580401]
[1644918184656,0.01,3095.3,3094.8,2.13358541]
[1644918184955,0.01,3095.3,3095.0,0.00967645]
[1644918185800,0.01,3095.3,3094.8,2.94113071]
[1644918186001,0.01,3095.3,3095.0,0.00967645]
[1644918186201,0.01,3095.3,3095.0,0.00467645]
[1644918187102,0.01,3095.3,3094.4,3.0937]
[1644918187301,0.467,3095.2,3094.2,1.2066]
[1644918187500,0.00273355,3095.1,3094.2,1.2066]
[1644918187701,0.46973355,3095.1,3094.2,1.2066]
[1644918187901,0.80797,3094.9,3094.2,1.2066]
[1644918188100,0.80797,3094.9,3094.2,0.98473308]
[1644918188301,0.00273355,3095.0,3094.1,0.1615]
[1644918188302,0.30273355,3094.8,3094.1,0.1615]
[1644918188510,0.767,3094.8,3094.1,0.1615]
[1644918188702,0.00273355,3094.7,3094.1,0.1615]
[1644918188950,0.81316,3094.2,3094.1,0.1615]
[1644918189156,4.53018873,3094.2,3094.1,0.1615]
[1644918190049,4.48018873,3094.2,3094.1,0.1615]
[1644918191053,4.48018873,3094.2,3094.0,0.0096792]
[1644918191054,1.39258308,3094.2,3094.0,0.0096792]
[1644918191254,2.20088308,3094.2,3094.0,0.0096792]
[1644918191858,1.14164078,3094.1,3092.9,3.3181]
[1644918192054,0.8084,3093.8,3092.9,3.3181]
[1644918192253,0.8084,3093.6,3092.9,3.3181]
[1644918192453,0.8084,3093.6,3092.8,3.84112263]
[1644918192697,0.8084,3093.6,3092.8,4.14112263]
[1644918192900,0.8084,3093.6,3092.8,1.33502263]
[1644918193299,0.8084,3093.6,3093.0,0.00968182]
[1644918193699,0.8084,3093.6,3093.3,1.01814902]
[1644918193900,0.80827,3093.9,3093.3,1.01814902]
[1644918194509,0.80827,3093.9,3093.3,1.02783015]
[1644918194901,0.80822,3093.9,3093.3,1.02783015]
[1644918195300,0.80822,3093.9,3093.3,1.01814902]
[1644918195600,0.80822,3093.9,3093.4,0.0093903]
[1644918196203,0.467,3093.8,3093.4,0.0093903]
[1644918196458,0.467,3094.2,3093.4,0.0093903]
[1644918196657,2.08348,3094.2,3092.7,3.8]
[1644918196959,3.23296,3094.2,3093.4,0.00823925]
[1644918197160,0.80817,3094.1,3093.5,1.12886313]
[1644918197757,1.54257079,3094.0,3093.5,1.12886313]
[1644918198068,0.73422079,3093.9,3093.6,0.00823871]
[1644918198358,0.80843,3093.8,3093.6,0.00823871]
[1644918198557,3.44787352,3093.7,3093.6,0.00823871]
[1644918198760,0.73426153,3093.7,3093.6,0.00823871]
[1644918198958,0.00063776,3093.4,3092.6,1.61239997]
[1644918199159,0.00063776,3093.4,3093.0,1.16795637]
[1644918199360,0.00063776,3093.4,3093.1,0.62374817]
[1644918200403,4.6,3093.3,3092.6,0.0018265]
[1644918200603,3.967,3093.2,3092.5,3.9868]
[1644918200811,0.80867,3093.0,3092.2,3.1663]
[1644918201006,0.467,3092.9,3092.2,3.1663]
[1644918201203,0.467,3092.9,3091.9,2.9612]
[1644918201605,0.467,3092.9,3092.7,0.91951724]
[1644918201803,0.80866,3092.8,3092.7,0.91951724]
[1644918203103,0.467,3092.9,3092.7,0.91951724]
[1644918205448,1.61695,3093.0,3092.7,0.91951724]
[1644918206047,0.00063776,3093.4,3092.7,0.91951724]
[1644918206248,0.00063776,3093.4,3092.7,1.21951724]
[1644918206548,0.13008576,3093.4,3092.7,1.2292033]
[1644918207048,0.00063776,3093.4,3092.7,1.2292033]
[1644918207448,0.00063776,3093.4,3092.7,1.21951724]
[1644918207723,0.00063776,3093.4,3093.3,1.06331973]
[1644918213454,0.00063776,3093.4,3093.3,2.05721973]
[1644918213653,0.00063776,3093.4,3093.3,2.35721973]
[1644918214855,0.00063776,3093.4,3093.3,1.06331973]
[1644918215906,0.00063776,3093.4,3092.6,0.60677454]
[1644918216107,0.00063776,3093.4,3092.5,4.94767454]
[1644918216306,0.00063776,3093.4,3092.5,4.3409]
[1644918216907,0.80832,3093.3,3093.2,0.96170636]
[1644918218011,0.00063776,3093.4,3093.2,0.96170636]
[1644918219548,1.61727776,3093.4,3093.2,0.96170636]
[1644918219751,1.61727776,3093.4,3092.6,1.2298]
[1644918219948,0.80893776,3093.4,3093.1,0.00970086]
[1644918220350,0.80893776,3093.4,3093.2,0.60052652]
[1644918220953,0.80893776,3093.4,3093.1,0.00970086]
[1644918221153,0.80893776,3093.4,3093.2,1.69561362]
[1644918221354,0.80893776,3093.4,3093.3,0.60052652]
[1644918222251,0.00063776,3093.4,3093.3,0.60052652]
[1644918222701,0.00063776,3093.4,3093.2,0.00970072]
[1644918222901,0.17066376,3093.4,3093.2,0.00970072]
[1644918223301,0.17066376,3093.4,3092.6,0.84707983]
[1644918223302,0.97898376,3093.4,3093.3,0.5973776]
[1644918223502,0.97898376,3093.4,3093.1,0.9429683]
[1644918223701,0.97898376,3093.4,3093.2,0.59732631]
[1644918224200,1.78644091,3093.4,3093.2,0.59732631]
[1644918224801,3.73089858,3093.3,3093.1,0.00970086]
[1644918225007,0.76291552,3093.2,3093.1,0.00970086]
[1644918225300,4.79272564,3093.2,3093.1,0.00970086]
[1644918225703,0.80849,3093.0,3092.4,3.3877]
[1644918225900,0.80849,3093.0,3092.7,0.95679905]
[1644918225901,4.22323358,3093.0,3092.7,0.95679905]
[1644918226101,0.80849,3093.0,3092.8,0.59771812]
[1644918226557,2.4254604,3093.0,3092.8,0.59771812]
[1644918226759,4.43027811,3092.9,3092.8,0.59771812]
[1644918227762,0.80848,3092.9,3092.7,0.00970196]
[1644918227964,1.24802918,3092.8,3092.7,0.00970196]
[1644918228163,1.24802918,3092.8,3092.1,2.7551]
[1644918228164,0.80857,3092.7,3092.1,2.7551]
[1644918228366,0.80853,3092.6,3092.2,0.61991261]
[1644918228567,2.42582,3092.6,3092.3,0.58109838]
[1644918229369,0.80855,3092.5,3092.4,0.58109838]
[1644918230201,0.80855,3092.5,3092.4,0.5484308]
[1644918230596,1.80855,3092.5,3092.3,0.00970321]
[1644918230797,3.4259164,3092.5,3092.3,0.00970321]
[1644918231301,0.467,3092.4,3092.3,0.00970321]
[1644918231696,0.467,3092.4,3091.4,0.67924549]
[1644918231697,1.6176,3092.2,3091.4,0.67924549]
[1644918231898,1.6175801,3092.2,3091.8,0.0388192]
[1644918232099,0.80879,3092.1,3091.8,0.0388192]
[1644918232897,1.6175601,3092.3,3091.7,1.06388332]
[1644918232898,0.8086212,3092.3,3091.7,1.06388332]
[1644918233097,0.8086212,3092.3,3091.8,0.00970459]
[1644918233298,1.8086212,3092.3,3091.8,0.00970459]
[1644918233498,0.8086212,3092.3,3091.8,0.00970459]
[1644918233849,0.80863,3092.2,3091.8,0.00970459]
[1644918234050,0.80863,3092.2,3091.7,1.06388332]
[1644918234249,0.80863,3092.2,3091.9,0.00970431]
[1644918234649,2.42591,3092.2,3091.9,0.00970431]
[1644918234850,0.467,3092.4,3091.9,0.00970431]
[1644918235250,0.8086,3092.3,3091.7,1.06388332]